{"text_format":"3","workbook":"xlsx","n_sheets":2,"sheets":["Început","Factură servicii"],"not_rendered":{"images":1,"defined_names":1},"read":"whole","date_system":"1900"}

{"sheet":"Început","index":0,"n_rows":8,"n_cols":2,"rows_kept":8}
[null,"DESPRE ACEST ȘABLON"]
[null,"Utilizați acest șablon pentru a crea o Factură servicii."]
[null,"Completați Numărul facturii, Data, Numele firmei, Adresă, Sloganul și detalii privind Facturarea către."]
[null,"Introduceți informațiile în tabele."]
[null,"Totalul este calculat automat pentru dvs."]
[null,"Notă: "]
[null,"Găsiți instrucțiuni suplimentare în coloana A din foaia de lucru FACTURĂ SERVICII. Acest text a fost ascuns intenționat. Pentru a elimina textul, selectați coloana A, apoi DELETE. Pentru a reafișa textul, selectați coloana A, apoi schimbați culoarea de font."]
[null,"Pentru a afla mai multe despre tabele, apăsați SHIFT, apoi F10 într-un tabel, selectați opțiunea TABEL, apoi TEXT ALTERNATIV."]

{"sheet":"Factură servicii","index":1,"n_rows":43,"n_cols":5,"rows_kept":43,"merged":[[0,1,0,2],[0,3,0,4],[1,1,1,4],[2,1,2,3],[3,1,3,3],[4,1,4,2],[5,1,5,2],[6,1,6,2],[7,1,7,2],[41,1,41,2],[41,3,41,4],[42,1,42,4]]}
["Creați o Factură de servicii în această foaie de lucru Introduceți Sigla firmei în celula de la dreapta și titlul acestei foi de lucru în celula D1. Găsiți instrucțiuni utile despre cum să utilizați această foaie de lucru în celulele din această coloană. Următoarele instrucțiuni se află în celula A3.","Substituentul siglei se află în această celulă.",null,"FACTURĂ"]
[]
["Introduceți Numele firmei în celula din dreapta.","Numele firmei dvs."]
["Introduceți Sloganul firmei în celula de la dreapta.","Sloganul firmei dvs."]
["Introduceți Adresa poștală a firmei în celula de la dreapta și Numărul facturii în celula E5.","Adresă poștală",null,"NR. FACTURĂ:","Nr."]
["Introduceți Localitatea, Județul și Codul poștal în celula de la dreapta, iar data în celula E6.","Localitate, județ, cod poștal",null,"DATA ",{"$f":"TODAY()","v":"2019-04-18"}]
["Introduceți Numerele de telefon și de fax în celula de la dreapta, iar ID-ul în celula E7.","Numărul de telefon și de fax",null,"ID CLIENT ","ID"]
["Introduceți Adresa de e-mail în celula de la dreapta.","E-mail"]
["Eticheta Către se află în celula de la dreapta. Introduceți detalii privind Facturarea, cum ar fi Numele, Numele firmei, Adresă și Numărul de telefon în celulele de la C9 la C13. Următoarele instrucțiuni se află în celula A14.","CĂTRE","Nume"]
[null,null,"Numele firmei"]
[null,null,"Adresă poștală"]
[null,null,"Localitate, județ, cod poștal"]
[null,null,"Telefon"]
["Introduceți informații în tabelul Detalii vânzări, începând cu celula de la dreapta. Următoarele instrucțiuni se află în celula A17.","VÂNZĂTOR","ACTIVITATE","CONDIȚII DE PLATĂ","DATA SCADENȚEI"]
[{"$nulls":3},"Scadent la primire"]
[]
["Introduceți informații în tabelul Factură, începând cu celula de la dreapta. Subtotal și Total sunt calculate automat. Următoarele instrucțiuni se află în celula A42.","CANTITATE","DESCRIERE","PREȚ UNITAR","TOTAL LINIE"]
[{"$nulls":4},{"$f":"IF(SUM(B18)>0,SUM(B18*'Factură servicii'!$D18),\"\")","v":""}]
[{"$nulls":4},{"$f":"IF(SUM(B19)>0,SUM(B19*'Factură servicii'!$D19),\"\")","v":""}]
[{"$nulls":4},{"$f":"IF(SUM(B20)>0,SUM(B20*'Factură servicii'!$D20),\"\")","v":""}]
[{"$nulls":4},{"$f":"IF(SUM(B21)>0,SUM(B21*'Factură servicii'!$D21),\"\")","v":""}]
[{"$nulls":4},{"$f":"IF(SUM(B22)>0,SUM(B22*'Factură servicii'!$D22),\"\")","v":""}]
[{"$nulls":4},{"$f":"IF(SUM(B23)>0,SUM(B23*'Factură servicii'!$D23),\"\")","v":""}]
[{"$nulls":4},{"$f":"IF(SUM(B24)>0,SUM(B24*'Factură servicii'!$D24),\"\")","v":""}]
[{"$nulls":4},{"$f":"IF(SUM(B25)>0,SUM(B25*'Factură servicii'!$D25),\"\")","v":""}]
[{"$nulls":4},{"$f":"IF(SUM(B26)>0,SUM(B26*'Factură servicii'!$D26),\"\")","v":""}]
[{"$nulls":4},{"$f":"IF(SUM(B27)>0,SUM(B27*'Factură servicii'!$D27),\"\")","v":""}]
[{"$nulls":4},{"$f":"IF(SUM(B28)>0,SUM(B28*'Factură servicii'!$D28),\"\")","v":""}]
[{"$nulls":4},{"$f":"IF(SUM(B29)>0,SUM(B29*'Factură servicii'!$D29),\"\")","v":""}]
[{"$nulls":4},{"$f":"IF(SUM(B30)>0,SUM(B30*'Factură servicii'!$D30),\"\")","v":""}]
[{"$nulls":4},{"$f":"IF(SUM(B31)>0,SUM(B31*'Factură servicii'!$D31),\"\")","v":""}]
[{"$nulls":4},{"$f":"IF(SUM(B32)>0,SUM(B32*'Factură servicii'!$D32),\"\")","v":""}]
[{"$nulls":4},{"$f":"IF(SUM(B33)>0,SUM(B33*'Factură servicii'!$D33),\"\")","v":""}]
[{"$nulls":4},{"$f":"IF(SUM(B34)>0,SUM(B34*'Factură servicii'!$D34),\"\")","v":""}]
[{"$nulls":4},{"$f":"IF(SUM(B35)>0,SUM(B35*'Factură servicii'!$D35),\"\")","v":""}]
[{"$nulls":4},{"$f":"IF(SUM(B36)>0,SUM(B36*'Factură servicii'!$D36),\"\")","v":""}]
[{"$nulls":4},{"$f":"IF(SUM(B37)>0,SUM(B37*'Factură servicii'!$D37),\"\")","v":""}]
[{"$nulls":3},"SUBTOTAL",{"$f":"IF(SUM(E18:E37)>0,SUM(E18:E37),\"\")","v":""}]
[{"$nulls":3},"TVA"]
[{"$nulls":3},"TOTAL",{"$f":"IF(SUM(E38)>0,SUM((E38*E39)+E38),\"\")","v":""}]
[]
["Numele Firmei se actualizează automat în celula D42.","Se efectuează toate plățile către",null,{"$f":"B3","v":"Numele firmei dvs."}]
["Mesajul de mulțumire se află în celula de la dreapta.","VĂ MULȚUMIM PENTRU COLABORARE!"]